Cogmind - Beta 13 @@@ ROGUE MODE // 2024.02.28 @ 18:00:11 Player: Rowl Result: Destroyed by S-10 Pest with Light Assault Rifle Performance ------------- Evolutions (2) 1000 Regions Visited (3) 600 Robots Destroyed (22) 110 Value Destroyed (573) 573 Prototype IDs (0) 0 Alien Tech Used (0) 0 Bonus (0) 0 TOTAL SCORE: 2283 Bonus ------- None Cogmind --------- Core Integrity 0/550 Matter 295/300 Energy 100/100 System Corruption 0% Temperature Cool (0) Movement Core (50) Location -8/Materials Parts ------- > --- POWER (3) -------- (None) > --- PROPULSION (3) --- (None) > --- UTILITY (3) ------ (None) > --- WEAPON (2) ------- (None) > --- INVENTORY (5) ---- (None) Peak State ------------ > --- POWER ------------ Ion Engine Light Ion Engine Improved Ion Engine > --- PROPULSION ------- Light Treads Improved Treads > --- UTILITY ---------- Small Storage Unit Sensor Array > --- WEAPON ----------- EM Shotgun Particle Gun > --- INVENTORY -------- Light Ion Engine Light Treads Compact Wheel Propulsion Shielding Small Laser Assault Rifle Datajack [Rating: 13] Favorites ----------- Power Ion Engine Engine Ion Engine Propulsion Light Treads Treads Light Treads Wheel Compact Wheel Utility Small Storage Unit Device Sensor Array Storage Small Storage Unit Protection Propulsion Shielding Weapon Assault Rifle Energy Gun Particle Gun Ballistic Gun Assault Rifle Special Melee Weapon Datajack Build | -11 -10 -9 -8 ------- Run | Yrd Mat Mat Mat Slots Evolved 4 | . . 2 2 Power 2 | . . 2 . Propulsion 1 | . . . 1 Utility 1 | . . . 1 Weapon . | . . . . Parts Attached 32 | 6 6 12 8 Power 7 | 1 1 5 . Engine 7 | 1 1 5 . Core . | . . . . Reactor . | . . . . Propulsion 12 | 2 3 5 2 Treads 8 | . 2 5 1 Leg . | . . . . Wheel 4 | 2 1 . 1 Hover . | . . . . Flight . | . . . . Utility 3 | 1 1 . 1 Device 1 | . 1 . . Storage 1 | 1 . . . Processor . | . . . . Hackware . | . . . . Protection 1 | . . . 1 Artifact . | . . . . Weapon 10 | 2 1 2 5 Energy Gun 6 | 1 1 1 3 Energy Cannon . | . . . . Ballistic Gun 2 | 1 . . 1 Ballistic Cannon . | . . . . Launcher . | . . . . Special Weapon . | . . . . Impact Weapon . | . . . . Slashing Weapon . | . . . . Piercing Weapon . | . . . . Special Melee Weapon 2 | . . 1 1 Unidentified Prototypes . | . . . . Parts Lost 18 | . 2 2 14 Power 5 | . 1 2 2 Propulsion 4 | . . . 4 Utility 3 | . . . 3 Weapon 6 | . 1 . 5 Highest Loss Streak 14 | . 2 1 14 To Critical Strikes . | . . . . Average Slot Usage (%) 86 | . 95 90 54 Engine 17 | . 13 24 9 Treads 14 | . 7 21 12 Wheel 8 | . 20 . . Device 10 | . 10 11 6 Storage 11 | . 14 11 8 Energy Gun 13 | . 13 15 11 Ballistic Gun 7 | . 14 3 . Special Melee Weapon 1 | . . 2 . Naked Turns 16 | . . . 16 Heaviest Build 27 | 14 16 27 21 Greatest Support 43 | 32 40 43 43 Greatest Overweight (x) 5 | . . 5 4 Average Overweight (x) . | . . . . Largest Inventory Capacity 8 | 8 8 8 8 Average Capacity 7 | 6 8 8 7 Most Carried 8 | 5 6 8 5 Average Carried 4 | 1 2 5 3 Final Capacity 8 | 8 8 8 5 Final Carried 5 | 1 4 5 . Class Distribution -------------------- 100% | Mutant Dominant Class ---------------- Mutant | -10/Materials Mutant | -9/Materials Mutant | -8/Materials Resources | -11 -10 -9 -8 ----------- Run | Yrd Mat Mat Mat Matter Collected 570 | 227 198 116 29 Remotely . | . . . . Salvage Created 816 | . 429 270 117 Parts 59 | . 31 25 3 Haulers Intercepted 1 | . 1 . . Recyclers Shooed 3 | . 2 1 . Parts Field Recycled . | . . . . Retrieved Matter . | . . . . Parts Self-Destructed . | . . . . Prevented . | . . . . Kills | -11 -10 -9 -8 ------- Run | Yrd Mat Mat Mat Combat Hostiles Destroyed 16 | . 9 7 . Guns 16 | . 9 7 . Classes Destroyed 8 | . 5 2 1 Builder 1 | . 1 . . Hauler 1 | . 1 . . Recycler 1 | . . . 1 Operator 1 | . . 1 . Watcher 2 | . 1 . 1 Swarmer 4 | . 2 2 . Grunt 10 | . 7 3 . Sentry 2 | . . 2 . Best Kill Streak 4 | . 4 3 2 Combat Bots Only 4 | . 4 3 . Max Kills in Single Turn 1 | . 1 1 1 Gunslinging . | . . . . Exploded . | . . . . Melee . | . . . . Uniques/NPCs Destroyed . | . . . . Combat | -11 -10 -9 -8 -------- Run | Yrd Mat Mat Mat Hostile Shots Fired 215 | . 40 42 133 Missed 53 | . 15 6 32 Damage Taken 2157 | . 419 374 1364 Core 760 | . 121 85 554 Absorbed by Shields . | . . . . Redirected to Shielding 52 | . . . 52 Core Remaining (%) 76 | 100 51 78 . Volleys Fired 74 | . 37 22 15 Largest 2 | . 2 2 2 Hottest 110 | . 70 110 108 Shots Fired 133 | . 74 29 30 Gun 133 | . 74 29 30 Cannon . | . . . . Launcher . | . . . . Special . | . . . . Kinetic 39 | . 37 2 . Thermal 72 | . 37 7 28 Explosive . | . . . . Electromagnetic 22 | . . 20 2 Robot Hit Streak 8 | . 6 8 6 Robot Miss Streak 6 | . 5 6 3 Penetration Max . | . . . . Secondary Targets 3 | . 2 1 . Max Gunslinging Chain 1 | . 1 1 . Shots Hit Robots 83 | . 40 20 23 Core Hits 47 | . 20 19 8 Critical Kills . | . . . . Critical Parts Destroyed . | . . . . Critical Strikes 4 | . 3 . 1 Burn 4 | . 3 . 1 Melee Attacks 3 | . . . 3 Impact . | . . . . Slashing . | . . . . Piercing . | . . . . Sneak Attacks 1 | . . . 1 Combat Hostiles . | . . . . Follow-up Attacks . | . . . . Damage Inflicted 1217 | . 618 269 330 Guns 1109 | . 520 259 330 Cannons . | . . . . Explosions 98 | . 98 . . Melee . | . . . . Ramming 10 | . . 10 . Kinetic 265 | . 255 10 . Thermal 629 | . 265 54 310 Explosive 98 | . 98 . . Electromagnetic 215 | . . 195 20 Impact . | . . . . Slashing . | . . . . Piercing . | . . . . Highest Corruption . | . . . . Average Corruption . | . . . . Corruption Purged . | . . . . Corruption Blocked . | . . . . Overload Shots . | . . . . Overflow Damage 83 | . 83 . . Projectiles . | . . . . Explosions 83 | . 83 . . Melee . | . . . . Knockbacks . | . . . . Impact . | . . . . Kinetic . | . . . . Secondary . | . . . . Self-Inflicted Damage 157 | . 157 . . Shots 2 | . 2 . . Rammed 3 | . . 3 . Targets Rammed 3 | . . 3 . Kicked . | . . . . Crushed . | . . . . Highest Temperature 475 | . 130 278 475 Average Temperature 116 | . 38 91 260 Received Heat Transfer 888 | . 105 108 675 Effects 8 | . . . 8 Shutdowns 3 | . . . 3 Interference 5 | . . . 5 Siege Activations . | . . . . Robots Corrupted . | . . . . Combat Hostiles . | . . . . Parts Fried . | . . . . Impact Corruptions . | . . . . Robots Melted . | . . . . Combat Hostiles . | . . . . Parts Melted . | . . . . Heat Transferred 1915 | . 999 148 768 Parts Sabotaged . | . . . . Parts Stolen . | . . . . Parts Stripped . | . . . . Power Chain Reactions . | . . . . Alert | -11 -10 -9 -8 ------- Run | Yrd Mat Mat Mat Peak Influence 317 | . 317 164 69 Initial 49 | . . 49 42 Average 103 | . 159 84 32 Maximum Alert Level 1 | . 1 . . Low Security (%) 87 | 100 69 100 100 Level 1 12 | . 30 . . Level 2 . | . . . . Level 3 . | . . . . Level 4 . | . . . . Level 5 . | . . . . High Security . | . . . . Max Security . | . . . . Squads Dispatched 4 | . 2 . 2 Investigation . | . . . . Extermination . | . . . . Reinforcement 3 | . 2 . 1 Assault . | . . . . Garrison 1 | . . . 1 Intercept . | . . . . Searches Triggered . | . . . . Construction Impeded . | . . . . Haulers Reinforced . | . . . . Active Scanning Responses . | . . . . Cargo Convoy Interrupts . | . . . . Stealth | -11 -10 -9 -8 --------- Run | Yrd Mat Mat Mat Distress Signals 2 | . 1 . 1 Communications Jammed . | . . . . Distress Signals . | . . . . Times Spotted 37 | . 16 12 9 Peak Tracking Total 9 | . 5 4 9 Tactical Retreats 2 | . . 2 . Traps | -11 -10 -9 -8 ------- Run | Yrd Mat Mat Mat Traps Triggered 3 | . . 3 . Indirectly . | . . . . Trap Hack Attempts . | . . . . Triggered . | . . . . Disarmed . | . . . . Reprogrammed . | . . . . Reused . | . . . . Traps Extracted . | . . . . Installed . | . . . . Triggered . | . . . . Machines | -11 -10 -9 -8 ---------- Run | Yrd Mat Mat Mat Machines Disabled 2 | . 2 . . Max in Single Turn 2 | . 2 . . Machines Repaired . | . . . . Machines Dismantled . | . . . . Machines Sabotaged . | . . . . Overloaded Fab Kills . | . . . . Hacking | -11 -10 -9 -8 --------- Run | Yrd Mat Mat Mat Machines Accessed 3 | . 2 1 . Terminals 3 | . 2 1 . Fabricators . | . . . . Repair Stations . | . . . . Recycling Units . | . . . . Scanalyzers . | . . . . Garrison Access . | . . . . Total Hacks 7 | . 4 3 . Successful 4 | . 3 1 . Failed 3 | . 1 2 . Catastrophic . | . . . . Database Lockouts . | . . . . Manual . | . . . . Terminals 7 | . 4 3 . Fabricators . | . . . . Repair Stations . | . . . . Recycling Units . | . . . . Scanalyzers . | . . . . Garrison Access . | . . . . Terminal Hacks 4 | . 3 1 . Record 1 | . . 1 . Alert Level 3 | . 3 . . Fabricator Hacks . | . . . . Repair Station Hacks . | . . . . Recycling Unit Hacks . | . . . . Scanalyzer . | . . . . Garrison Access Hacks . | . . . . Unauthorized Hacks . | . . . . Terminals . | . . . . Fabricators . | . . . . Repair Stations . | . . . . Recycling Units . | . . . . Scanalyzers . | . . . . Garrison Access . | . . . . Data Cores Recovered 1 | . . 1 . Used . | . . . . Hacking Detections 2 | . 1 1 . Full Trace Events 1 | . . 1 . Feedback Events . | . . . . Feedback Blocked . | . . . . Robot Schematics Acquired . | . . . . Robots Built . | . . . . Authchips . | . . . . Time . | . . . . Total Robot Build Rating . | . . . . Part Schematics Acquired . | . . . . Parts Built . | . . . . Authchips . | . . . . Time . | . . . . Total Part Build Rating . | . . . . Parts Repaired . | . . . . Time . | . . . . Parts Recycled . | . . . . Recycled Matter . | . . . . Retrieved Matter . | . . . . Retrieved Components . | . . . . Parts Scanalyzed . | . . . . Part Schematics Acquired . | . . . . Parts Damaged . | . . . . Bothacking | -11 -10 -9 -8 ------------ Run | Yrd Mat Mat Mat Used RIF Installer . | . . . . Robots Hacked 2 | . . . 2 Non-combat 1 | . . . 1 Combat 1 | . . . 1 Robot Hacks Applied 2 | . . . 2 parse_system 1 | . . . 1 no_distress 1 | . . . 1 Relay Couplers Released . | . . . . Fabnet Peak Effective % . | . . . . Robots Rewired . | . . . . Allies Hacked . | . . . . Hacks Repelled . | . . . . Allies | -11 -10 -9 -8 -------- Run | Yrd Mat Mat Mat Total Allies . | . . . . Largest Group . | . . . . Highest-Rated Group . | . . . . Highest-Rated Ally . | . . . . Total Orders . | . . . . Ally Attacks . | . . . . Total Damage . | . . . . Kills . | . . . . Allies Corrupted . | . . . . Allies Melted . | . . . . Intel | -11 -10 -9 -8 ------- Run | Yrd Mat Mat Mat Robot Analysis Total . | . . . . Derelict Logs Recovered . | . . . . Drone Launches . | . . . . Drone Recoveries . | . . . . Exploration | -11 -10 -9 -8 ------------- Run | Yrd Mat Mat Mat Turns Passed 1210 | 39 479 509 183 Spaces Moved 689 | 34 306 260 89 Core 43 | 13 . 3 27 Treads 391 | . 83 257 51 Legs . | . . . . Wheels 255 | 21 223 . 11 Hover . | . . . . Flight . | . . . . Fastest Speed 50 | 50 100 160 50 Average Speed 133 | 80 116 161 128 Slowest Speed 300 | 100 160 300 250 Overloaded Moves . | . . . . Propulsion Burnouts . | . . . . Robots Hopped . | . . . . Cave-ins Triggered . | . . . . Exploration Rate (%) 20 | 3 40 25 12 Regions Visited 3 Branch Regions . Pre-discovered Areas . | . . . . Known Exits Taken . | . . . . Unknown Exits Taken 3 | 1 1 1 . Scrap Searched . | . . . . Spaces Dug . | . . . . Terrain Destroyed 19 | . 19 . . Melee . | . . . . Projectile . | . . . . AOE 19 | . 19 . . Terrain Rammed . | . . . . Walls Destroyed . | . . . . Machines Disabled . | . . . . Actions | -11 -10 -9 -8 --------- Run | Yrd Mat Mat Mat Total 846 | 45 356 319 126 Wait 19 | . . 10 9 Move 686 | 33 305 259 89 Hop . | . . . . Pick Up 23 | 6 6 10 1 Fast Attach 2 | 1 . 1 . Attach 25 | 5 5 8 7 Detach 4 | . 2 1 1 Swap 5 | . 1 3 1 Drop 2 | . . 2 . Fire 74 | . 37 22 15 Melee 3 | . . . 3 Ram . | . . . . Kick . | . . . . Crush 3 | . . 3 . Escape Stasis . | . . . . Rewire . | . . . . Trap . | . . . . Miscellaneous . | . . . . Route ------- -11/Scrapyard -10/Materials (discovered 2 exits: *Mat / [*Sub]) -9/Materials -8/Materials History --------- Turn | Location | Event 7 | -11/Scrapyard | Discovered new exit (range 16) 40 | -11/Scrapyard | Entered Materials 306 | -10/Materials | Build established: Mutant 374 | -10/Materials | Discovered new exit (range 4) 481 | -10/Materials | Discovered new exit (range 15) 519 | -10/Materials | Entered another Materials area 519 | -9/Materials | Evolved 2 slots: Power x2 999 | -9/Materials | Discovered new exit (range 15) 1028 | -9/Materials | Entered another Materials area 1028 | -8/Materials | Evolved 2 slots: Propulsion x1, Utility x1 1096 | -8/Materials | Garrison activated, responded to threat 1177 | -8/Materials | Core integrity fell below 50% 1205 | -8/Materials | Core integrity fell below 20% 1211 | -8/Materials | Destroyed by S-10 Pest with Light Assault Rifle Last Messages --------------- 01154_ M-13 Machinist repairs G-47 Trooper. 01155_ Jacked G-47 Trooper... 01156_ Sneak attack on M-13 Machinist. 01156_ Jacked M-13 Machinist... >>no_distress Distress signal routine blocked. 01157_ Power failure, Imp. Ion Engine shutdown. 01158_ Imp. Ion Engine destroyed. 01160_ Overheating: System interference. 01160_ Sensor Array temporarily disabled. 01160_ Critical hit (Burn: +37). 01161_ Datajack destroyed. 01162_ Sensor Array destroyed. 01170_ G-47 Trooper misfires. 01174_ Lgt. Treads destroyed. 01182_ S-10 Pest destroyed. 01193_ Com. Wheel destroyed. 01195_ Sml. Storage Unit destroyed. 01202_ ALERT: Hostiles spotted, dispatching reinforcements to Terminal M008. Map ----- +----------------------------------------------------+ | | | | | ?????????????????????????????????????????????????? | | ?????????????????????????????????????????????????? | | #######??????????????????????????????????????????? | | #??????????????????????????????????????????? | | #??????????????????????????????????????????? | | #??????????????????????????????????????????? | | #?######???????????????????????????????????? | | #?]!!==#???????????????????????????????????? | | #?]!!==#???????????????????????????????????? | | # #???????????????????????????????????? | | ## #???????????????????????????????????? | | #+###### ##+##???????????????????????????????? | | ! ! !% ??????????????????????????????? | | ??????????????????????????????? | | """ ??????????????????????????????? | | """ #####???????????????????????????????? | | """ ######????????????????????????????????? | | # # #???##???????????????????????????? | | # # ##### #####??????????????????????? | | # # # ! T #??????????????????????? | | ####### # # #??????????????????????? | | ####### # # """ """Y#??????????????????????? | | [ + "" # """g""" #??????????????????????? | | =%*# "T # """ """@#??????????????????????? | | ""= # "" # m s #??????????????????????? | | Y" / # """ """ #??????????????????????? | | "" ###### """ """s#??????????????????????? | | # """ """g#??????????????????????? | | # s #??????????????????????? | | """" # """ """ #??????????????????????? | | """" / """ """ #??????????????????????? | | """" # """ """g#??????????????????????? | | # #??????????????????????? | | # #??????????????????????? | | ? ############### #??????????????????????? | | ????????????????###########??????????????????????? | | ?????????????????????????????????????????????????? | | ?????????????????????????????????????????????????? | | ?????????????????????????????????????????????????? | | ?????????????????????????????????????????????????? | | ?????????????????????????????????????????????????? | | ?????????????????????????????????????????????????? | | ?????????????????????????????????????????????????? | | ?????????????????????????????????????????????????? | | ?????????????????????????????????????????????????? | | ?????????????????????????????????????????????????? | | ?????????????????????????????????????????????????? | | ?????????????????????????????????????????????????? | +----------------------------------------------------+ Best States ------------- Heat Dissipation 31 Energy Generation 22 Energy Capacity 440 Matter Stores 300 Matter Capacity 300 Sight Range 16 Robot Scan Range 14 Terrain Scan Density 10 Propulsion Shielding 33 Evasion (%) 50 Recoil Reduction 2 Item Schematics ----------------- None Robot Schematics ------------------ None Fabricated ------------ Nothing Alien Tech Used ----------------- None Achievements -------------- None Challenges ------------ None Game ------ Seed PhasingSpectralMantle Manual? 0 Play Time 00:21:13 Cumulative 11.5 hours Start 2024.02.28 @ 17:42:13 End 2024.02.28 @ 18:00:11 Sessions 1 Manual Loads 0 Difficulty Rogue Special Mode None Game No. 29 Rogue 24 Adventurer 5 Explorer 0 Win Type - Total 7 Types 7/0/0/0/0/0/0/0/0 Lore% 3 Gallery% 14 Achievement% 8 Wizard Run 0 Options --------- Layout 1 ASCII 0 Keyboard 0 Movement Mouse Keybinds 0 Fullscreen 2 Font 48/Smallcaps Map View 50x35 Zoom Use 0% Tactical HUD 1 Map Filters NONE Filters NONE Steam 1 RUN: ab8fb317-fec9-40f3-96e0-2b76bb86963c